fUST/lending_fUST_20240918
["ID","MTS","AMOUNT","RATE_DAILY","PERIOD"]
[338419906,1726626641198,-1897.23,0.00020273,2]
[338419907,1726626641207,-2673.28,0.00020273,2]
[338419908,1726626641216,-1732.79,0.00020273,2]
[338419909,1726626641228,-500.0,0.00020273,2]
[338419910,1726626641237,-86345.18,0.00020273,2]
[338419911,1726626641247,-1318.86,0.00020273,2]
[338419912,1726626641257,-938.63,0.00020273,2]
[338419913,1726626641266,-2145.47,0.00020273,2]
[338419914,1726626641275,-563.27,0.00020273,2]
[338419915,1726626641284,-761.25,0.00020273,2]
[338419916,1726626641293,-500.0,0.00020273,2]
[338419917,1726626641302,-500.0,0.00020273,2]
[338419918,1726626641311,-500.0,0.00020273,2]
[338419919,1726626641322,-1100.65,0.00020273,2]
[338419920,1726626641331,-2100.33,0.00020273,2]
[338419921,1726626641341,-500.0,0.00020273,2]
[338419922,1726626641350,-811.62,0.00020273,2]
[338419923,1726626641359,-1170.35,0.00020273,2]
[338419924,1726626641369,-677.29,0.00020273,2]
[338419925,1726626641378,-500.0,0.00020273,2]
[338419926,1726626641387,-500.0,0.00020273,2]
[338419927,1726626641397,-914.74,0.00020273,2]
[338419928,1726626641406,-2102.86,0.00020273,2]
[338419929,1726626641415,-500.0,0.00020273,2]
[338419930,1726626641425,-500.0,0.00020273,2]
[338419931,1726626641434,-10328.85,0.00020273,2]
[338419932,1726626641444,-1295.28,0.00020273,2]
[338419933,1726626641453,-2111.43,0.00020273,2]
[338419934,1726626641463,-1217.05,0.00020273,2]
[338419935,1726626641472,-784.88,0.00020273,2]
[338419936,1726626641482,-566.58,0.00020273,2]
[338419937,1726626641491,-500.0,0.00020273,2]
[338419938,1726626641500,-1349.65,0.00020273,2]
[338419939,1726626641509,-899.23,0.00020273,2]
[338419940,1726626641519,-500.0,0.00020273,2]
[338419941,1726626641528,-2544.42,0.00020273,2]
[338419942,1726626641537,-500.0,0.00020273,2]
[338419943,1726626641546,-500.0,0.00020273,2]
[338419944,1726626641555,-596.89124491,0.00020273,2]
[338419945,1726626641567,-1969.18,0.00020273,2]
[338419946,1726626641585,-500.0,0.00020273,2]
[338419947,1726626641595,-500.0,0.00020273,2]
[338419948,1726626641608,-12411.55,0.00020273,2]
[338419949,1726626641617,-1036.87,0.00020273,2]
[338419950,1726626641627,-161.033875,0.00020314,2]
[338419951,1726626641635,-161.033875,0.00020378,2]
[338419952,1726626641646,-161.033875,0.00020442,2]
[338419953,1726626641655,-161.033875,0.00020506,2]
[338419954,1726626641664,-500.0,0.0002051,30]
[338419955,1726626641674,-1356.88,0.00020538,3]
[338419956,1726626641684,-678.44,0.00020538,3]
[338419957,1726626641694,-339.22,0.00020538,3]
[338419958,1726626641703,-599.28797431,0.00020547,2]
[338419959,1726626641713,-1095.0,0.00020547,2]
[338419960,1726626641722,-500.0,0.00020547,2]
[338419961,1726626641731,-824.77,0.00020547,2]
[338419962,1726626641741,-590.68,0.00020547,2]
[338419963,1726626641750,-500.0,0.00020547,2]
[338419964,1726626641759,-1513.88,0.00020547,2]
[338419965,1726626641769,-500.0,0.00020547,2]
[338419966,1726626641778,-641.66,0.00020547,2]
[338419967,1726626641787,-3114.76,0.00020547,2]
[338419968,1726626641796,-1897.23,0.00020547,2]
[338419969,1726626641805,-2673.28,0.00020547,2]
[338419970,1726626641817,-1732.79,0.00020547,2]
[338419971,1726626641827,-500.0,0.00020547,2]
[338419972,1726626641836,-86345.18,0.00020547,2]
[338419973,1726626641845,-1318.86,0.00020547,2]
[338419974,1726626641854,-938.63,0.00020547,2]
[338419975,1726626641863,-2145.47,0.00020547,2]
[338419976,1726626641873,-563.27,0.00020547,2]
[338419977,1726626641882,-761.25,0.00020547,2]
[338419978,1726626641893,-500.0,0.00020547,2]
[338419979,1726626641904,-500.0,0.00020547,2]
[338419980,1726626641915,-500.0,0.00020547,2]
[338419981,1726626641925,-1100.65,0.00020547,2]
[338419982,1726626641935,-2100.33,0.00020547,2]
[338419983,1726626641943,-500.0,0.00020547,2]
[338419984,1726626641953,-811.62,0.00020547,2]
[338419985,1726626641962,-1170.35,0.00020547,2]
[338419986,1726626641972,-677.29,0.00020547,2]
[338419987,1726626641982,-500.0,0.00020547,2]
[338419988,1726626641992,-500.0,0.00020547,2]
[338419989,1726626642003,-914.74,0.00020547,2]
[338419990,1726626642013,-2102.86,0.00020547,2]
[338419991,1726626642023,-543.26574504,0.00020547,2]
[338419992,1726626642033,-500.0,0.00020547,2]
[338419993,1726626642045,-10328.85,0.00020547,2]
[338419994,1726626642055,-1295.28,0.00020547,2]
[338419995,1726626642067,-2111.43,0.00020547,2]
[338419996,1726626642076,-1217.05,0.00020547,2]
[338419997,1726626642085,-784.88,0.00020547,2]
[338419998,1726626642094,-566.58,0.00020547,2]
[338419999,1726626642104,-500.0,0.00020547,2]
[338420000,1726626642114,-1349.65,0.00020547,2]
[338420001,1726626642124,-899.23,0.00020547,2]
[338420002,1726626642134,-500.0,0.00020547,2]
[338420003,1726626642145,-2544.42,0.00020547,2]
[338420004,1726626642155,-500.0,0.00020547,2]
[338420005,1726626642163,-500.0,0.00020547,2]
[338420006,1726626642172,-1969.18,0.00020547,2]
[338420007,1726626642181,-500.0,0.00020547,2]
[338420008,1726626642190,-500.0,0.00020547,2]
[338420009,1726626642200,-1036.87,0.00020547,2]
[338420010,1726626642209,-161.033875,0.0002057,2]
[338420011,1726626642218,-161.033875,0.00020634,2]
[338420012,1726626642228,-1095.0,0.00020821,2]
[338420013,1726626642238,-500.0,0.00020821,2]
[338420014,1726626642247,-824.77,0.00020821,2]
[338420015,1726626642257,-590.68,0.00020821,2]
[338420016,1726626642268,-500.0,0.00020821,2]
[338420017,1726626642278,-1513.88,0.00020821,2]
[338420018,1726626642288,-500.0,0.00020821,2]
[338420019,1726626642298,-641.66,0.00020821,2]
[338420020,1726626642308,-3114.76,0.00020821,2]
[338420021,1726626642317,-1897.23,0.00020821,2]
[338420022,1726626642327,-2673.28,0.00020821,2]
[338420023,1726626642338,-1732.79,0.00020821,2]
[338420024,1726626642348,-500.0,0.00020821,2]
[338420025,1726626642359,-86345.18,0.00020821,2]
[338420026,1726626642371,-1318.86,0.00020821,2]
[338420027,1726626642381,-938.63,0.00020821,2]
[338420028,1726626642390,-2145.47,0.00020821,2]
[338420029,1726626642400,-563.27,0.00020821,2]
[338420030,1726626642410,-761.25,0.00020821,2]
[338420031,1726626642420,-500.0,0.00020821,2]
[338420032,1726626642429,-586.08278171,0.00020821,2]
[338420033,1726626642439,-500.0,0.00020821,2]
[338420034,1726626642448,-1100.65,0.00020821,2]
[338420035,1726626642458,-2100.33,0.00020821,2]
[338420036,1726626642468,-500.0,0.00020821,2]
[338420037,1726626642477,-811.62,0.00020821,2]
[338420038,1726626642488,-1170.35,0.00020821,2]
[338420039,1726626642499,-677.29,0.00020821,2]
[338420040,1726626642510,-501.82837374,0.00020821,2]
[338420041,1726626642520,-500.0,0.00020821,2]
[338420042,1726626642530,-914.74,0.00020821,2]
[338420043,1726626642540,-2102.86,0.00020821,2]
[338420044,1726626642551,-500.0,0.00020821,2]
[338420045,1726626642561,-10328.85,0.00020821,2]
[338420046,1726626642572,-1295.28,0.00020821,2]
[338420047,1726626642581,-2111.43,0.00020821,2]
[338420048,1726626642591,-1217.05,0.00020821,2]
[338420049,1726626642602,-784.88,0.00020821,2]
[338420050,1726626642613,-566.58,0.00020821,2]
[338420051,1726626642622,-500.0,0.00020821,2]
[338420052,1726626642633,-1349.65,0.00020821,2]
[338420053,1726626642643,-899.23,0.00020821,2]
[338420054,1726626642656,-500.0,0.00020821,2]
[338420055,1726626642666,-2544.42,0.00020821,2]
[338420057,1726626642675,-500.0,0.00020821,2]
[338420059,1726626642686,-500.0,0.00020821,2]
[338420061,1726626642695,-1969.18,0.00020821,2]
[338420062,1726626642704,-500.0,0.00020821,2]
[338420063,1726626642715,-500.0,0.00020821,2]
[338420064,1726626642726,-420.0,0.00020865,2]
[338420065,1726626642737,-192.85443142,0.00020872,2]
[338420066,1726626642746,-1474.77770086,0.000209,2]
[338420067,1726626642755,-1000.0,0.00021,2]
[338420068,1726626642765,-3000.0,0.00021,2]
[338420069,1726626642774,-3000.0,0.0002101,2]
[338420070,1726626642784,-3000.0,0.0002102,2]
[338420071,1726626642795,-500.0,0.00021029,2]
[338420072,1726626642805,-4894.33106,0.0002103,2]
[338420073,1726626642820,-420.0,0.00021059,2]
[338420074,1726626642829,-1095.0,0.00021095,2]
[338420075,1726626642839,-500.0,0.00021095,2]
[338420076,1726626642848,-824.77,0.00021095,2]
[338420077,1726626642859,-590.68,0.00021095,2]
[338420078,1726626642868,-500.0,0.00021095,2]
[338420079,1726626642879,-1513.88,0.00021095,2]
[338420080,1726626642889,-395.73734482,0.00021095,2]
[338420081,1726626642899,-641.66,0.00021095,2]
[338420082,1726626642908,-3114.76,0.00021095,2]
[338420083,1726626642917,-1897.23,0.00021095,2]
[338420084,1726626642927,-2673.28,0.00021095,2]
[338420085,1726626642937,-1732.79,0.00021095,2]
[338420086,1726626642947,-500.0,0.00021095,2]
[338420087,1726626642957,-86345.18,0.00021095,2]
[338420088,1726626642969,-1318.86,0.00021095,2]
[338420089,1726626642979,-938.63,0.00021095,2]
[338420090,1726626642990,-2145.47,0.00021095,2]
[338420091,1726626642999,-563.27,0.00021095,2]
[338420092,1726626643010,-761.25,0.00021095,2]
[338420093,1726626643019,-500.0,0.00021095,2]
[338420094,1726626643029,-639.3823794,0.00021095,2]
[338420095,1726626643038,-1100.65,0.00021095,2]
[338420096,1726626643048,-2100.33,0.00021095,2]
[338420097,1726626643060,-500.0,0.00021095,2]
[338420098,1726626643072,-811.62,0.00021095,2]
[338420099,1726626643083,-1170.35,0.00021095,2]
[338420100,1726626643091,-677.29,0.00021095,2]
[338420101,1726626643101,-500.0,0.00021095,2]
[338420102,1726626643110,-914.74,0.00021095,2]
[338420103,1726626643119,-2102.86,0.00021095,2]
[338420104,1726626643128,-500.0,0.00021095,2]
[338420105,1726626643138,-10328.85,0.00021095,2]
[338420106,1726626643147,-1295.28,0.00021095,2]
[338420108,1726626643156,-2111.43,0.00021095,2]
[338420109,1726626643165,-1217.05,0.00021095,2]
[338420111,1726626643174,-784.88,0.00021095,2]
[338420112,1726626643183,-566.58,0.00021095,2]
[338420113,1726626643193,-500.0,0.00021095,2]
[338420114,1726626643204,-1349.65,0.00021095,2]
[338420115,1726626643215,-899.23,0.00021095,2]
[338420116,1726626643228,-500.0,0.00021095,2]
[338420117,1726626643237,-2544.42,0.00021095,2]
[338420118,1726626643246,-500.0,0.00021095,2]
[338420119,1726626643256,-500.0,0.00021095,2]
[338420120,1726626643266,-1969.18,0.00021095,2]
[338420121,1726626643277,-500.0,0.00021095,2]
[338420122,1726626643288,-500.0,0.00021095,2]
[338420123,1726626643298,-1095.0,0.00021369,2]
[338420124,1726626643310,-500.0,0.00021369,2]
[338420125,1726626643320,-824.77,0.00021369,2]
[338420126,1726626643330,-590.68,0.00021369,2]
[338420127,1726626643339,-500.0,0.00021369,2]
[338420128,1726626643348,-1513.88,0.00021369,2]
[338420129,1726626643358,-641.66,0.00021369,2]
[338420130,1726626643367,-3114.76,0.00021369,2]
[338420131,1726626643377,-1897.23,0.00021369,2]
[338420132,1726626643388,-2673.28,0.00021369,2]
[338420133,1726626643399,-1732.79,0.00021369,2]
[338420134,1726626643409,-500.0,0.00021369,2]
[338420135,1726626643418,-86345.18,0.00021369,2]
[338420136,1726626643428,-1318.86,0.00021369,2]
[338420137,1726626643437,-938.63,0.00021369,2]
[338420138,1726626643447,-2145.47,0.00021369,2]
[338420139,1726626643456,-563.27,0.00021369,2]
[338420140,1726626643466,-761.25,0.00021369,2]
[338420141,1726626643477,-500.0,0.00021369,2]
[338420142,1726626643487,-1100.65,0.00021369,2]
[338420143,1726626643497,-2100.33,0.00021369,2]
[338420144,1726626643506,-500.0,0.00021369,2]
[338420145,1726626643515,-811.62,0.00021369,2]
[338420146,1726626643525,-1170.35,0.00021369,2]
[338420147,1726626643535,-677.29,0.00021369,2]
[338420148,1726626643544,-500.0,0.00021369,2]
[338420149,1726626643554,-914.74,0.00021369,2]
[338420150,1726626643564,-2102.86,0.00021369,2]
[338420151,1726626643575,-500.0,0.00021369,2]
[338420152,1726626643584,-10328.85,0.00021369,2]
[338420153,1726626643594,-1295.28,0.00021369,2]
[338420154,1726626643606,-2111.43,0.00021369,2]
[338420155,1726626643616,-1217.05,0.00021369,2]
[338420156,1726626643798,-784.88,0.00021369,2]
[338420157,1726626643808,-566.58,0.00021369,2]
[338420158,1726626643818,-500.0,0.00021369,2]
[338420159,1726626643828,-1349.65,0.00021369,2]
[338420160,1726626643837,-500.0,0.00021369,2]
[338420161,1726626643846,-899.23,0.00021369,2]
[338420162,1726626643856,-2544.42,0.00021369,2]
[338420163,1726626643865,-500.0,0.00021369,2]
[338420164,1726626643875,-500.0,0.00021369,2]
[338420165,1726626643885,-1969.18,0.00021369,2]
[338420166,1726626643895,-500.0,0.00021369,2]
[338420167,1726626643905,-1000.0,0.00021413,2]
[338420168,1726626643915,-1474.77770084,0.00021471,2]
[338420169,1726626643924,-150.39593174,0.00021483,2]
[338420170,1726626643934,-2930.24233511,0.00021643,5]
[338420171,1726626643943,-1095.0,0.00021643,2]
[338420172,1726626643953,-500.0,0.00021643,2]
[338420173,1726626643962,-824.77,0.00021643,2]
[338420174,1726626643972,-590.68,0.00021643,2]
[338420175,1726626643982,-500.0,0.00021643,2]
[338420176,1726626643995,-1513.88,0.00021643,2]
[338420177,1726626644006,-641.66,0.00021643,2]
[338420178,1726626644016,-3114.76,0.00021643,2]
[338420179,1726626644027,-1897.23,0.00021643,2]
[338420180,1726626644037,-2673.28,0.00021643,2]
[338420181,1726626644046,-1732.79,0.00021643,2]
[338420182,1726626644056,-500.0,0.00021643,2]
[338420183,1726626644065,-86345.18,0.00021643,2]
[338420184,1726626644077,-1318.86,0.00021643,2]
[338420185,1726626644087,-938.63,0.00021643,2]
[338420186,1726626644097,-2145.47,0.00021643,2]
[338420187,1726626644107,-563.27,0.00021643,2]
[338420188,1726626644116,-761.25,0.00021643,2]
[338420189,1726626644126,-500.0,0.00021643,2]
[338420190,1726626644136,-1100.65,0.00021643,2]
[338420191,1726626644146,-2100.33,0.00021643,2]
[338420192,1726626644156,-500.0,0.00021643,2]
[338420193,1726626644165,-811.62,0.00021643,2]
[338420194,1726626644175,-1170.35,0.00021643,2]
[338420195,1726626644185,-677.29,0.00021643,2]
[338420196,1726626644195,-613.48659917,0.00021643,2]
[338420197,1726626644204,-914.74,0.00021643,2]
[338420198,1726626644214,-2102.86,0.00021643,2]
[338420199,1726626644225,-500.0,0.00021643,2]
[338420200,1726626644234,-10328.85,0.00021643,2]
[338420201,1726626644243,-1295.28,0.00021643,2]
[338420202,1726626644255,-2111.43,0.00021643,2]
[338420203,1726626644264,-1217.05,0.00021643,2]
[338420204,1726626644274,-784.88,0.00021643,2]
[338420205,1726626644284,-566.58,0.00021643,2]
[338420206,1726626644293,-500.0,0.00021643,2]
[338420207,1726626644303,-1349.65,0.00021643,2]
[338420208,1726626644313,-500.0,0.00021643,2]
[338420209,1726626644322,-899.23,0.00021643,2]
[338420210,1726626644332,-2544.42,0.00021643,2]
[338420211,1726626644342,-500.0,0.00021643,2]
[338420212,1726626644351,-500.0,0.00021643,2]
[338420213,1726626644360,-1969.18,0.00021643,2]
[338420214,1726626644370,-153.0,0.00021644,2]
[338420215,1726626644381,-153.0,0.00021644,2]
[338420216,1726626644391,-153.0,0.00021644,2]
[338420217,1726626644402,-153.0,0.00021644,2]
[338420218,1726626644411,-153.0,0.00021644,2]
[338420219,1726626644421,-208.4916004,0.00021644,2]
[338420220,1726626644431,-6387.74286606,0.00021703,2]
[338420221,1726626644440,-500.0,0.00021756,2]
[338420222,1726626644451,-119753.566558,0.00021866,3]
[338420223,1726626644462,-4775.3438142,0.00021866,3]
[338420224,1726626644472,-500.50555096,0.00021873,2]
[338420225,1726626644482,-501.91744874,0.00021873,2]
[338420226,1726626644493,-151803.94008607,0.00021876,3]
[338420227,1726626645198,-500.0,0.00019178,2]
[338420228,1726626645207,-500.0,0.00019452,2]
[338420229,1726626645217,-500.0,0.00019726,2]
[338420230,1726626645227,-500.0,0.00019726,2]
[338420231,1726626645236,-500.0,0.0002,2]
[338420232,1726626645245,-500.0,0.0002,2]
[338420233,1726626645255,-500.0,0.00020273,2]
[338420234,1726626645265,-500.0,0.00020273,2]
[338420235,1726626645274,-12411.55,0.00020547,2]
[338420236,1726626645283,-500.0,0.00020547,2]
[338420237,1726626645292,-500.0,0.00020547,2]
[338420238,1726626645302,-1036.87,0.00020821,2]
[338420239,1726626645311,-12411.55,0.00020821,2]
[338420240,1726626645321,-500.0,0.00020821,2]
[338420241,1726626645330,-500.0,0.00020821,2]
[338420242,1726626645339,-1036.87,0.00021095,2]
[338420243,1726626645348,-12411.55,0.00021095,2]
[338420244,1726626645358,-647.81641713,0.00021095,2]
[338420245,1726626645367,-500.0,0.00021095,2]
[338420246,1726626645377,-500.0,0.00021369,2]
[338420247,1726626645386,-1036.87,0.00021369,2]
[338420248,1726626645397,-12411.55,0.00021369,2]
[338420249,1726626645407,-500.0,0.00021643,2]
[338420250,1726626645417,-500.0,0.00021643,2]
[338420251,1726626645426,-1036.87,0.00021643,2]
[338420252,1726626645436,-12411.55,0.00021643,2]
[338420253,1726626645445,-207456.75958793,0.00021876,3]
[338420254,1726626645455,-14326.0314426,0.00021876,3]
[338420255,1726626645464,-14326.0314426,0.00021877,3]
[338420256,1726626645473,-9550.6876284,0.00021887,3]
[338420257,1726626645483,-1000.0,0.00021896,2]
[338420258,1726626645492,-500.0,0.00021896,2]
[338420259,1726626645502,-500.0,0.00021896,2]
[338420260,1726626645511,-500.0,0.00021896,2]
[338420261,1726626645521,-500.0,0.00021896,2]
[338420262,1726626645531,-500.0,0.00021896,2]
[338420263,1726626645541,-500.0,0.00021896,2]
[338420264,1726626645551,-500.0,0.00021896,2]
[338420265,1726626645560,-500.0,0.00021896,2]
[338420266,1726626645571,-500.0,0.00021896,2]
[338420267,1726626645582,-500.0,0.00021896,2]
[338420268,1726626645591,-500.0,0.00021896,2]
[338420269,1726626645602,-500.0,0.00021896,2]
[338420270,1726626645613,-150.112233,0.000219,2]
[338420271,1726626645623,-150.112233,0.000219,4]
[338420272,1726626645635,-150.112233,0.000219,2]
[338420273,1726626645646,-150.112233,0.000219,2]
[338420274,1726626645656,-150.112233,0.000219,2]
[338420275,1726626645665,-52528.7819562,0.00021907,3]
[338420276,1726626645675,-1441.30764285,0.00021916,3]
[338420277,1726626645685,-161.42631546,0.00021916,2]
[338420278,1726626645695,-8079.77785976,0.00021917,5]
[338420279,1726626645705,-151.0,0.00021917,2]
[338420280,1726626645716,-151.0,0.00021917,2]
[338420281,1726626645727,-500.0,0.00021917,2]
[338420282,1726626645737,-500.0,0.00021917,2]
[338420283,1726626645746,-151.0,0.00021917,2]
[338420284,1726626645755,-151.0,0.00021917,2]
[338420285,1726626645767,-251.20258883,0.00021917,2]
[338420286,1726626645778,-500.0,0.00021917,2]
[338420287,1726626645787,-500.0,0.00021917,2]
[338420289,1726626645797,-500.0,0.00021917,10]
[338420291,1726626645806,-500.0,0.00021917,10]
[338420292,1726626645816,-500.0,0.00021917,10]
[338420295,1726626645826,-500.94906618,0.00021917,2]
[338420297,1726626645836,-500.0,0.00021917,2]
[338420298,1726626645845,-500.0,0.00021917,2]
[338420300,1726626645855,-500.0,0.00021917,2]
[338420302,1726626645863,-1000.0,0.00021917,2]
[338420304,1726626645873,-500.0,0.00021917,2]
[338420306,1726626645883,-500.0,0.00021917,2]
[338420308,1726626645893,-501.02801274,0.00021917,2]
[338420310,1726626645903,-500.0,0.00021917,2]
[338420313,1726626645913,-500.0,0.00021917,2]
[338420314,1726626645922,-500.0,0.00021917,2]
[338420317,1726626645932,-211.69222266,0.00021917,2]
[338420319,1726626645941,-1011.98,0.00021917,2]
[338420320,1726626645951,-501.16532172,0.00021917,2]
[338420322,1726626645960,-500.0,0.00021917,2]
[338420324,1726626645969,-558.03664616,0.00021917,2]
[338420326,1726626645979,-500.0,0.00021917,2]
[338420328,1726626645988,-500.0,0.00021917,2]
[338420330,1726626645998,-500.0,0.00021917,2]
[338420332,1726626646007,-500.0,0.00021917,2]
[338420333,1726626646017,-500.0,0.00021917,2]
[338420334,1726626646027,-500.0,0.00021917,2]
[338420335,1726626646037,-261.40377493,0.00021917,2]
[338420336,1726626646048,-500.0,0.00021917,2]
[338420337,1726626646058,-500.0,0.00021917,2]
[338420338,1726626646067,-500.0,0.00021917,2]
[338420339,1726626646078,-500.0,0.00021917,2]
[338420340,1726626646088,-500.0,0.00021917,2]
[338420342,1726626646097,-500.0,0.00021917,2]
[338420344,1726626646106,-500.0,0.00021917,2]
[338420345,1726626646115,-1263.32,0.00021917,2]
[338420346,1726626646125,-641.6981366,0.00021917,2]
[338420347,1726626646134,-500.0,0.00021917,2]
[338420348,1726626646143,-500.0,0.00021917,2]
[338420349,1726626646153,-500.0,0.00021917,2]
[338420350,1726626646161,-500.0,0.00021917,2]
[338420351,1726626646172,-500.0,0.00021917,2]
[338420352,1726626646183,-500.0,0.00021917,2]
[338420353,1726626646193,-500.0,0.00021917,2]
[338420354,1726626646204,-500.0,0.00021917,2]
[338420355,1726626646213,-500.0,0.00021917,2]
[338420356,1726626646224,-500.0,0.00021917,2]
[338420357,1726626646235,-151.0,0.00021917,2]
[338420358,1726626646245,-151.0,0.00021917,2]
[338420359,1726626646254,-151.0,0.00021917,2]
[338420360,1726626646265,-151.0,0.00021917,2]
[338420361,1726626646275,-500.0,0.00021917,2]
[338420362,1726626646286,-516.83,0.00021917,2]
[338420363,1726626646298,-500.83673935,0.00021917,2]
[338420364,1726626646307,-530.95,0.00021917,2]
[338420365,1726626646316,-500.0,0.00021917,2]
[338420366,1726626646327,-500.0,0.00021917,2]
[338420367,1726626646337,-500.63170957,0.00021917,2]
[338420368,1726626646347,-500.0,0.00021917,2]
[338420369,1726626646357,-500.78788974,0.00021917,2]
[338420370,1726626646367,-500.0,0.00021917,2]
[338420371,1726626646377,-500.0,0.00021917,2]
[338420372,1726626646388,-500.0,0.00021917,2]
[338420373,1726626646399,-500.80031723,0.00021917,2]
[338420374,1726626646409,-500.0,0.00021917,2]
[338420375,1726626646420,-500.0,0.00021917,2]
[338420376,1726626646624,-500.0,0.00021917,2]
[338420377,1726626646635,-389.47565138,0.00021917,2]
[338420378,1726626646645,-500.0,0.00021917,2]
[338420379,1726626646657,-714.77,0.00021917,2]
[338420380,1726626646667,-505.49503684,0.00021917,2]
[338420381,1726626646678,-811.14,0.00021917,2]
[338420382,1726626646688,-991.59,0.00021917,2]
[338420383,1726626646700,-568.68349003,0.00021917,2]
[338420384,1726626646710,-1803.02,0.00021917,2]
[338420385,1726626646722,-500.0,0.00021917,2]
[338420386,1726626646732,-500.0,0.00021917,2]
[338420387,1726626646741,-500.0,0.00021917,2]
[338420388,1726626646751,-500.0,0.00021917,2]
[338420389,1726626646760,-500.0,0.00021917,2]
[338420390,1726626646770,-500.0,0.00021917,2]
[338420391,1726626646779,-500.0,0.00021917,2]
[338420392,1726626646790,-1000.0,0.00021917,2]
[338420393,1726626646801,-500.0,0.00021917,2]
[338420394,1726626646810,-500.0,0.00021917,2]
[338420395,1726626646819,-1437.04,0.00021917,2]
[338420396,1726626646831,-3566.48,0.00021917,2]
[338420397,1726626646840,-178.69640053,0.00021917,2]
[338420398,1726626646850,-500.0,0.00021917,2]
[338420399,1726626646860,-500.0,0.00021917,2]
[338420400,1726626646869,-500.0,0.00021917,2]
[338420401,1726626646878,-765.77,0.00021917,2]
[338420402,1726626646887,-514.60611533,0.00021917,2]
[338420403,1726626646897,-500.0,0.00021917,2]
[338420404,1726626646907,-500.0,0.00021917,2]
[338420405,1726626646916,-500.0,0.00021917,2]
[338420406,1726626646926,-500.0,0.00021917,2]
[338420407,1726626646936,-500.0,0.00021917,2]
[338420408,1726626646946,-500.0,0.00021917,2]
[338420409,1726626646957,-500.0,0.00021917,2]
[338420410,1726626646965,-500.0,0.00021917,2]
[338420411,1726626646975,-500.0,0.00021917,2]
[338420412,1726626646983,-500.0,0.00021917,2]
[338420413,1726626646993,-500.0,0.00021917,2]
[338420414,1726626647003,-500.0,0.00021917,2]
[338420415,1726626647012,-646.59368076,0.00021917,2]
[338420416,1726626647022,-527.04732526,0.00021917,2]
[338420417,1726626647032,-500.0,0.00021917,2]
[338420418,1726626647042,-500.0,0.00021917,2]
[338420419,1726626647052,-1606.35,0.00021917,2]
[338420420,1726626647061,-647.66,0.00021917,2]
[338420421,1726626647072,-500.0,0.00021917,2]
[338420422,1726626647081,-500.0,0.00021917,2]
[338420423,1726626647091,-500.0,0.00021917,2]
[338420424,1726626647100,-617.32,0.00021917,2]
[338420425,1726626647110,-500.0,0.00021917,2]
[338420426,1726626647119,-500.0,0.00021917,2]
[338420427,1726626647130,-500.0,0.00021917,2]
[338420428,1726626647139,-2202.22,0.00021917,2]
[338420429,1726626647148,-509.48,0.00021917,2]
[338420430,1726626647158,-500.0,0.00021917,2]
[338420431,1726626647167,-151.0,0.00021917,2]
[338420432,1726626647178,-151.0,0.00021917,2]
[338420433,1726626647189,-500.0,0.00021917,2]
[338420434,1726626647199,-970.64,0.00021917,2]